[Event "17th Memorial Lezcano Montalvo 2025"]
[Site "Gran Canaria"]
[Date "2025.04.18"]
[Round "7.24"]
[White "Estremera Panos, Sergio"]
[Black "Ramos Santana, Marcelino"]
[Result "0-1"]
[Annotator "RC"]
[ECO "A96"]
[WhiteElo "2195"]
[BlackElo "1903"]
[PlyCount "76"]
[EventDate "2025.04.13"]
[EventType "swiss"]
[EventCountry "ESP"]
[SourceTitle "playchess.com"]
[Source "ChessBase"]
[SourceQuality "1"]
[TimeControl "5400+30"]

1. d4 {[%emt 0:01:26]} f5 {[%emt 0:00:21]} 2. Nf3 {[%emt 0:00:09]} e6 {[%emt 0:00:33]} 3. g3 {[%emt 0:00:08]} Nf6 {[%emt 0:00:15]} 4. Bg2 {[%emt 0:00:06]} Be7 {[%emt 0:00:08]} 5. O-O {[%emt 0:00:12]} O-O {[%emt 0:00:10]} 6. c4 {[%emt 0:00:05]} d6 {[%emt 0:00:05]} 7. Nc3 {[%emt 0:00:13]} Ne4 {[%emt 0:00:12]} 8. Nxe4 {[%emt 0:01:27]} fxe4 {[%emt 0:00:10]} 9. Ne1 {[%emt 0:00:04]} d5 {[%emt 0:00:14]} 10. Be3 {[%emt 0:00:10]} Nc6 {[%emt 0:07:04]} 11. f3 {[%emt 0:06:32]} exf3 {[%emt 0:08:06]} 12. Nxf3 {[%emt 0:00:55]} Na5 {[%emt 0:05:31]} 13. c5 {[%emt 0:35:30]} Nc4 {[%emt 0:11:31]} 14. Bc1 {[%emt 0:01:45]} b6 {[%emt 0:00:29]} 15. b3 {[%emt 0:00:39]} Na5 {[%emt 0:00:30]} 16. Ne5 {[%emt 0:14:45]} Bb7 {[%emt 0:05:37]} 17. Bh3 {[%emt 0:03:55]} Bc8 {[%emt 0:08:48]} 18. Bd2 {[%emt 0:01:55]} Bf6 {[%emt 0:03:19]} 19. Rc1 {[%emt 0:10:58]} Bxe5 {[%emt 0:08:25]} 20. Rxf8+ {[%emt 0:00:45]} Kxf8 {[%emt 0:05:08]} 21. dxe5 {[%emt 0:00:46]} c6 {[%emt 0:02:23]} 22. Bb4 {[%emt 0:02:15]} Kg8 {[%emt 0:01:15]} 23. Qd4 {[%emt 0:00:31]} b5 {[%emt 0:02:51]} 24. Rf1 {[%emt 0:00:22]} Nb7 {[%emt 0:00:29]} 25. Bd2 {[%emt 0:01:14]} Qe7 {[%emt 0:00:51]} 26. b4 {[%emt 0:01:37]} a5 {[%emt 0:00:59]} 27. a3 {[%emt 0:00:02]} Bd7 {[%emt 0:00:25]} 28. Qg4 {[%emt 0:06:10]} Rf8 {[%emt 0:01:52]} 29. Rxf8+ {[%emt 0:01:36]} Qxf8 {[%emt 0:00:15]} 30. Qd4 {[%emt 0:04:31]} a4 {[%emt 0:01:42]} 31. e4 {[%emt 0:00:22]} Nd8 {[%emt 0:00:22]} 32. Bg5 {[%emt 0:02:36]} Nf7 {[%emt 0:06:36]} 33. Bd2 {[%emt 0:00:45]} Nd8 {[%emt 0:00:46]} 34. Bg4 {[%emt 0:00:38]} g6 {[%emt 0:01:07]} 35. h4 {[%emt 0:00:24]} h5 {[%emt 0:00:30]} 36. Bd1 {[%emt 0:00:45]} Nf7 {[%emt 0:00:27]} 37. Bc2 {[%emt 0:01:05]} Qg7 {[%emt 0:00:13]} 38. Bf4 {[%emt 0:02:12]} g5 {[%emt 0:19:51]} 0-1

[Event "17th Memorial Lezcano Montalvo 2025"]
[Site "Gran Canaria"]
[Date "2025.04.18"]
[Round "7.25"]
[White "Posso Cangrejo, Sergio David"]
[Black "Marrero Cardenes, Agustin"]
[Result "0-1"]
[Annotator "ChessBase"]
[ECO "B15"]
[WhiteElo "1878"]
[BlackElo "2163"]
[PlyCount "78"]
[EventDate "2025.04.13"]
[EventType "swiss"]
[EventCountry "ESP"]
[SourceTitle "playchess.com"]
[Source "ChessBase"]
[SourceQuality "1"]
[TimeControl "5400+30"]

1. e4 {[%emt 0:03:25]} c6 {[%emt 0:00:09]} 2. d4 {[%emt 0:00:18]} d5 {[%emt 0:00:07]} 3. Nd2 {[%emt 0:00:13]} dxe4 {[%emt 0:00:08]} 4. Nxe4 {[%emt 0:00:15]} Nf6 {[%emt 0:00:08]} 5. Nxf6+ {[%emt 0:00:18]} exf6 {[%emt 0:00:04]} 6. c3 {[%emt 0:00:10]} Bd6 {[%emt 0:00:23]} 7. Bd3 {[%emt 0:00:08]} O-O {[%emt 0:00:09]} 8. Qc2 {[%emt 0:00:11]} Re8+ {[%emt 0:00:08]} 9. Ne2 {[%emt 0:00:06]} h5 {[%emt 0:00:11]} 10. O-O {[%emt 0:00:05]} h4 {[%emt 0:00:16]} 11. h3 {[%emt 0:00:06]} Nd7 {[%emt 0:01:16]} 12. Bd2 {[%emt 0:00:05]} Nf8 {[%emt 0:00:40]} 13. Rae1 {[%emt 0:00:07]} g6 {[%emt 0:13:34]} 14. Nf4 {[%emt 0:00:23]} Rxe1 {[%emt 0:10:48]} 15. Rxe1 {[%emt 0:00:30]} f5 {[%emt 0:03:18]} 16. Bc4 {[%emt 0:05:25]} b5 {[%emt 0:01:06]} 17. Bb3 {[%emt 0:00:27]} a5 {[%emt 0:00:32]} 18. a4 {[%emt 0:00:31]} bxa4 {[%emt 0:01:58]} 19. Bxa4 {[%emt 0:00:53]} Rb8 {[%emt 0:00:08]} 20. Nd3 {[%emt 0:08:01]} Ba6 {[%emt 0:03:53]} 21. Bc1 {[%emt 0:07:12]} Bxd3 {[%emt 0:04:13]} 22. Qxd3 {[%emt 0:00:50]} Bc7 {[%emt 0:00:10]} 23. Bxc6 {[%emt 0:08:15]} Qd6 {[%emt 0:00:37]} 24. Qf3 {[%emt 0:00:10]} Rb6 {[%emt 0:02:01]} 25. Bd5 {[%emt 0:01:42]} Nh7 {[%emt 0:02:39]} 26. c4 {[%emt 0:17:52]} Nf6 {[%emt 0:09:59]} 27. c5 {[%emt 0:01:26]} Qh2+ {[%emt 0:00:05]} 28. Kf1 {[%emt 0:00:04]} Rb4 {[%emt 0:00:22]} 29. Rd1 {[%emt 0:11:26]} a4 {[%emt 0:15:08]} 30. Bc6 {[%emt 0:05:07]} Rb3 {[%emt 0:01:05]} 31. Be3 {[%emt 0:04:36]} Rxb2 {[%emt 0:00:52]} 32. Bd2 {[%emt 0:01:05]} Rb3 {[%emt 0:04:13]} 33. Be3 {[%emt 0:00:14]} a3 {[%emt 0:03:56]} 34. Bd5 {[%emt 0:09:59]} Rb2 {[%emt 0:03:11]} 35. Bd2 {[%emt 0:01:10]} a2 {[%emt 0:02:08]} 36. Bxa2 {[%emt 0:07:03]} Ne4 {[%emt 0:05:05]} 37. Ke2 {[%emt 0:03:00]} Rxa2 {[%emt 0:01:54]} 38. d5 {[%emt 0:00:52]} Qe5 {[%emt 0:00:35]} 39. Kd3 {[%emt 0:06:20]} Kg7 {[%emt 0:08:39]} 0-1

[Event "17th Memorial Lezcano Montalvo 2025"]
[Site "Gran Canaria"]
[Date "2025.04.18"]
[Round "7.26"]
[White "Henriquez Garcia, David"]
[Black "Bethencourt Hernandez, Alberto"]
[Result "0-1"]
[Annotator "NA"]
[ECO "E61"]
[WhiteElo "1869"]
[BlackElo "2122"]
[PlyCount "66"]
[EventDate "2025.04.13"]
[EventType "swiss"]
[EventCountry "ESP"]
[SourceTitle "playchess.com"]
[Source "ChessBase"]
[SourceQuality "1"]
[TimeControl "5400+30"]

1. c4 {[%emt 0:01:16]} Nf6 {[%emt 0:00:24]} 2. Nc3 {[%emt 0:00:07]} g6 {[%emt 0:00:23]} 3. g3 {[%emt 0:00:06]} Bg7 {[%emt 0:00:23]} 4. Bg2 {[%emt 0:00:04]} O-O {[%emt 0:00:32]} 5. e3 {[%emt 0:01:55]} d6 {[%emt 0:00:36]} 6. Nge2 {[%emt 0:00:35]} e5 {[%emt 0:01:24]} 7. O-O {[%emt 0:00:34]} c6 {[%emt 0:01:01]} 8. d4 {[%emt 0:00:27]} Qe7 {[%emt 0:02:38]} 9. b4 {[%emt 0:07:21]} Rd8 {[%emt 0:04:13]} 10. Qb3 {[%emt 0:02:06]} exd4 {[%emt 0:06:47]} 11. exd4 {[%emt 0:02:18]} d5 {[%emt 0:01:21]} 12. cxd5 {[%emt 0:04:35]} Nxd5 {[%emt 0:13:35]} 13. Nxd5 {[%emt 0:03:12]} cxd5 {[%emt 0:00:36]} 14. Be3 {[%emt 0:00:56]} Be6 {[%emt 0:02:28]} 15. Rac1 {[%emt 0:07:22]} Nc6 {[%emt 0:01:01]} 16. Rc5 {[%emt 0:04:17]} Qd7 {[%emt 0:02:36]} 17. Rfc1 {[%emt 0:02:31]} Bf8 {[%emt 0:08:13]} 18. a3 {[%emt 0:05:22]} Bxc5 {[%emt 0:02:10]} 19. Rxc5 {[%emt 0:01:03]} Rac8 {[%emt 0:03:51]} 20. Bg5 {[%emt 0:03:41]} Ne7 {[%emt 0:00:39]} 21. Qe3 {[%emt 0:00:31]} b6 {[%emt 0:04:07]} 22. Rxc8 {[%emt 0:02:18]} Rxc8 {[%emt 0:00:05]} 23. Qe5 {[%emt 0:05:45]} Nf5 {[%emt 0:00:24]} 24. g4 {[%emt 0:00:24]} Ng7 {[%emt 0:00:23]} 25. Bh6 {[%emt 0:03:48]} Ne8 {[%emt 0:00:51]} 26. g5 {[%emt 0:02:57]} Bh3 {[%emt 0:02:14]} 27. Bxh3 {[%emt 0:17:31]} Qxh3 {[%emt 0:00:08]} 28. Qe7 {[%emt 0:00:12]} Nc7 {[%emt 0:01:34]} 29. Qe5 {[%emt 0:06:59]} Ne6 {[%emt 0:00:20]} 30. f4 {[%emt 0:00:40]} Qf5 {[%emt 0:03:43]} 31. Qd6 {[%emt 0:02:38]} Qe4 {[%emt 0:00:12]} 32. Qd7 {[%emt 0:00:13]} Rd8 {[%emt 0:00:07]} 33. Qe7 {[%emt 0:00:20]} Qxe2 {[%emt 0:38:01]} 0-1

[Event "17th Memorial Lezcano Montalvo 2025"]
[Site "Gran Canaria"]
[Date "2025.04.18"]
[Round "7.27"]
[White "Halldorsson, Halldor"]
[Black "Gonzalez Perdomo, Sergio"]
[Result "0-1"]
[Annotator "ChessBase"]
[ECO "B56"]
[WhiteElo "2103"]
[BlackElo "1880"]
[PlyCount "84"]
[EventDate "2025.04.13"]
[EventType "swiss"]
[EventCountry "ESP"]
[SourceTitle "playchess.com"]
[Source "ChessBase"]
[SourceQuality "1"]
[TimeControl "5400+30"]

1. e4 {[%emt 0:00:16]} c5 {[%emt 0:00:14]} 2. Nf3 {[%emt 0:00:21]} Nc6 {[%emt 0:00:35]} 3. Bb5 {[%emt 0:00:33]} Nf6 {[%emt 0:00:54]} 4. Nc3 {[%emt 0:01:12]} d6 {[%emt 0:00:16]} 5. O-O {[%emt 0:00:56]} Bd7 {[%emt 0:00:41]} 6. d4 {[%emt 0:01:52]} cxd4 {[%emt 0:00:42]} 7. Nxd4 {[%emt 0:00:07]} g6 {[%emt 0:02:32]} 8. Nxc6 {[%emt 0:03:51]} Bxc6 {[%emt 0:04:06]} 9. Bxc6+ {[%emt 0:01:19]} bxc6 {[%emt 0:00:08]} 10. Qe2 {[%emt 0:05:50]} Nd7 {[%emt 0:09:02]} 11. Qc4 {[%emt 0:02:26]} Ne5 {[%emt 1:16:50]} 12. Qa4 {[%emt 0:02:50]} Bg7 {[%emt 0:00:00]} 13. f4 {[%emt 0:04:36]} Qb6+ {[%emt 0:00:00]} 14. Kh1 {[%emt 0:00:25]} Nd7 {[%emt 0:00:00]} 15. Bd2 {[%emt 0:07:44]} O-O {[%emt 0:00:00]} 16. Qc4 {[%emt 0:02:15]} Rab8 {[%emt 0:00:00]} 17. Rab1 {[%emt 0:02:02]} Rfd8 {[%emt 0:00:00]} 18. Rf3 {[%emt 0:05:55]} a5 {[%emt 0:00:00]} 19. h4 {[%emt 0:02:30]} Nf6 {[%emt 0:00:00]} 20. h5 {[%emt 0:09:39]} d5 {[%emt 0:00:00]} 21. exd5 {[%emt 0:00:38]} cxd5 {[%emt 0:00:00]} 22. Qe2 {[%emt 0:01:01]} Nxh5 {[%emt 0:00:00]} 23. Rd3 {[%emt 0:07:32]} e6 {[%emt 0:00:00]} 24. Qg4 {[%emt 0:03:16]} Qf2 {[%emt 0:00:11]} 25. Nd1 {[%emt 0:03:26]} Qf1+ {[%emt 0:00:25]} 26. Kh2 {[%emt 0:00:05]} f5 {[%emt 0:00:52]} 27. Qf3 {[%emt 0:00:40]} Qxf3 {[%emt 0:00:56]} 28. gxf3 {[%emt 0:01:00]} Rdc8 {[%emt 0:01:40]} 29. c3 {[%emt 0:05:20]} Bh6 {[%emt 0:00:34]} 30. Nf2 {[%emt 0:01:16]} Bxf4+ {[%emt 0:00:29]} 31. Kg2 {[%emt 0:00:51]} Bxd2 {[%emt 0:00:10]} 32. Rxd2 {[%emt 0:00:06]} Rxc3 {[%emt 0:00:55]} 33. Nh3 {[%emt 0:00:06]} h6 {[%emt 0:01:02]} 34. Re1 {[%emt 0:00:20]} Rc6 {[%emt 0:00:25]} 35. Re3 {[%emt 0:00:28]} Kf7 {[%emt 0:01:08]} 36. Ra3 {[%emt 0:00:45]} Rb5 {[%emt 0:00:21]} 37. b3 {[%emt 0:00:24]} Rbc5 {[%emt 0:01:13]} 38. Nf2 {[%emt 0:01:29]} Nf4+ {[%emt 0:00:14]} 39. Kg3 {[%emt 0:00:06]} g5 {[%emt 0:00:12]} 40. Ra4 {[%emt 0:00:37]} h5 {[%emt 0:00:40]} 41. Rxf4 {[%emt 0:01:04]} gxf4+ {[%emt 0:00:06]} 42. Kxf4 {[%emt 0:00:07]} Rc2 {[%emt 0:01:08]} 0-1

[Event "17th Memorial Lezcano Montalvo 2025"]
[Site "Gran Canaria"]
[Date "2025.04.18"]
[Round "7.28"]
[White "Sukhodolskyi, Oleksii"]
[Black "Ludishev, Artem"]
[Result "0-1"]
[Annotator "RC"]
[ECO "D02"]
[WhiteElo "2070"]
[BlackElo "1874"]
[PlyCount "152"]
[EventDate "2025.04.13"]
[EventType "swiss"]
[EventCountry "ESP"]
[SourceTitle "playchess.com"]
[Source "ChessBase"]
[SourceQuality "1"]
[TimeControl "5400+30"]

1. d4 {[%emt 0:00:09]} Nf6 {[%emt 0:00:23]} 2. Bf4 {[%emt 0:00:32]} e6 {[%emt 0:00:13]} 3. e3 {[%emt 0:00:09]} c5 {[%emt 0:00:35]} 4. Nf3 {[%emt 0:00:40]} Nc6 {[%emt 0:00:09]} 5. Nbd2 {[%emt 0:00:23]} d5 {[%emt 0:01:52]} 6. c3 {[%emt 0:00:36]} Nh5 {[%emt 0:00:18]} 7. Bg5 {[%emt 0:00:50]} Qb6 {[%emt 0:00:15]} 8. Rb1 {[%emt 0:08:15]} h6 {[%emt 0:00:14]} 9. Bh4 {[%emt 0:00:42]} g5 {[%emt 0:00:52]} 10. Ne5 {[%emt 0:11:14]} Nxe5 {[%emt 0:18:03]} 11. Qxh5 {[%emt 0:13:28]} Ng6 {[%emt 0:00:20]} 12. Bg3 {[%emt 0:01:25]} cxd4 {[%emt 0:00:46]} 13. exd4 {[%emt 0:00:46]} Bd6 {[%emt 0:01:15]} 14. Bxd6 {[%emt 0:10:52]} Qxd6 {[%emt 0:00:22]} 15. g3 {[%emt 0:03:18]} e5 {[%emt 0:10:11]} 16. Bb5+ {[%emt 0:06:05]} Kf8 {[%emt 0:01:00]} 17. O-O {[%emt 0:09:50]} exd4 {[%emt 0:04:59]} 18. cxd4 {[%emt 0:07:32]} Qb4 {[%emt 0:02:54]} 19. Qe2 {[%emt 0:02:15]} Bh3 {[%emt 0:00:33]} 20. Rfd1 {[%emt 0:01:59]} Rg8 {[%emt 0:03:26]} 21. Nf1 {[%emt 0:08:53]} a6 {[%emt 0:11:57]} 22. Qh5 {[%emt 0:03:49]} Kg7 {[%emt 0:09:45]} 23. Qxh3 {[%emt 0:00:25]} axb5 {[%emt 0:00:51]} 24. a3 {[%emt 0:01:54]} Qd6 {[%emt 0:00:33]} 25. Ne3 {[%emt 0:00:12]} Ne7 {[%emt 0:00:07]} 26. Nf5+ {[%emt 0:01:19]} Nxf5 {[%emt 0:00:03]} 27. Qxf5 {[%emt 0:00:07]} b4 {[%emt 0:05:43]} 28. axb4 {[%emt 0:02:16]} Rgd8 {[%emt 0:05:08]} 29. Qe5+ {[%emt 0:03:23]} Qxe5 {[%emt 0:04:58]} 30. dxe5 {[%emt 0:00:02]} d4 {[%emt 0:00:15]} 31. b3 {[%emt 0:01:18]} Rd5 {[%emt 0:04:25]} 32. f4 {[%emt 0:00:30]} gxf4 {[%emt 0:00:08]} 33. gxf4 {[%emt 0:00:01]} Kg6 {[%emt 0:01:25]} 34. Rbc1 {[%emt 0:01:47]} Rad8 {[%emt 0:00:21]} 35. Rc7 {[%emt 0:00:23]} R8d7 {[%emt 0:02:53]} 36. Rxd7 {[%emt 0:00:12]} Rxd7 {[%emt 0:00:01]} 37. Kf2 {[%emt 0:00:19]} Kf5 {[%emt 0:00:10]} 38. Kf3 {[%emt 0:00:45]} d3 {[%emt 0:00:17]} 39. Rd2 {[%emt 0:00:20]} Rd4 {[%emt 0:06:53]} 40. Ke3 {[%emt 0:00:50]} Rxf4 {[%emt 0:01:36]} 41. Rxd3 {[%emt 0:00:07]} Kxe5 {[%emt 0:00:52]} 42. Rd7 {[%emt 0:00:43]} Rxb4 {[%emt 0:00:08]} 43. Rxf7 {[%emt 0:00:21]} Rxb3+ {[%emt 0:00:04]} 44. Kd2 {[%emt 0:00:17]} b5 {[%emt 0:02:31]} 45. Rb7 {[%emt 0:00:34]} Kd5 {[%emt 0:00:51]} 46. Kc2 {[%emt 0:00:39]} Kc6 {[%emt 0:02:15]} 47. Rf7 {[%emt 0:01:02]} Rh3 {[%emt 0:00:10]} 48. Rf6+ {[%emt 0:00:05]} Kc5 {[%emt 0:00:10]} 49. Rf5+ {[%emt 0:00:08]} Kb4 {[%emt 0:00:10]} 50. Rf4+ {[%emt 0:00:06]} Ka3 {[%emt 0:00:11]} 51. Rf2 {[%emt 0:00:11]} b4 {[%emt 0:00:12]} 52. Kb1 {[%emt 0:00:45]} h5 {[%emt 0:00:35]} 53. Ra2+ {[%emt 0:00:11]} Kb3 {[%emt 0:00:07]} 54. Rb2+ {[%emt 0:00:10]} Kc4 {[%emt 0:00:09]} 55. Rc2+ {[%emt 0:00:06]} Rc3 {[%emt 0:00:28]} 56. Rf2 {[%emt 0:00:55]} Kb3 {[%emt 0:01:10]} 57. Rb2+ {[%emt 0:00:34]} Ka4 {[%emt 0:00:01]} 58. Rf2 {[%emt 0:01:10]} h4 {[%emt 0:00:12]} 59. Rf4 {[%emt 0:01:31]} h3 {[%emt 0:00:17]} 60. Rf2 {[%emt 0:00:12]} Kb3 {[%emt 0:00:47]} 61. Rb2+ {[%emt 0:00:35]} Kc4 {[%emt 0:00:01]} 62. Rf2 {[%emt 0:00:33]} Kd3 {[%emt 0:01:52]} 63. Rf4 {[%emt 0:00:44]} b3 {[%emt 0:00:28]} 64. Kb2 {[%emt 0:00:32]} Ke3 {[%emt 0:00:59]} 65. Rh4 {[%emt 0:00:31]} Rc2+ {[%emt 0:00:14]} 66. Kxb3 {[%emt 0:00:20]} Rxh2 {[%emt 0:00:03]} 67. Rc4 {[%emt 0:00:20]} Rd2 {[%emt 0:00:41]} 68. Rc8 {[%emt 0:00:50]} Kf2 {[%emt 0:00:11]} 69. Rh8 {[%emt 0:00:32]} Rd3+ {[%emt 0:00:50]} 70. Kc2 {[%emt 0:00:10]} Rg3 {[%emt 0:00:11]} 71. Kd2 {[%emt 0:00:20]} Kg2 {[%emt 0:00:08]} 72. Re8 {[%emt 0:00:58]} h2 {[%emt 0:00:14]} 73. Re2+ {[%emt 0:00:13]} Kh3 {[%emt 0:00:07]} 74. Re1 {[%emt 0:00:09]} Rg1 {[%emt 0:00:04]} 75. Re3+ {[%emt 0:00:04]} Kg4 {[%emt 0:00:09]} 76. Re4+ {[%emt 0:00:19]} Kf5 {[%emt 0:00:09]} 0-1

[Event "17th Memorial Lezcano Montalvo 2025"]
[Site "Gran Canaria"]
[Date "2025.04.18"]
[Round "7.29"]
[White "Camino Carrio, Nicanor"]
[Black "De La Cruz Perez, Carlos"]
[Result "0-1"]
[Annotator "NA"]
[ECO "C74"]
[WhiteElo "2045"]
[BlackElo "1835"]
[PlyCount "46"]
[EventDate "2025.04.13"]
[EventType "swiss"]
[EventCountry "ESP"]
[SourceTitle "playchess.com"]
[Source "ChessBase"]
[SourceQuality "1"]
[TimeControl "5400+30"]

1. e4 {[%emt 0:00:45]} e5 {[%emt 0:00:06]} 2. Nf3 {[%emt 0:00:23]} Nc6 {[%emt 0:00:09]} 3. Bb5 {[%emt 0:00:33]} a6 {[%emt 0:00:08]} 4. Ba4 {[%emt 0:00:07]} d6 {[%emt 0:00:07]} 5. c3 {[%emt 0:00:34]} f5 {[%emt 0:00:08]} 6. exf5 {[%emt 0:02:23]} Bxf5 {[%emt 0:00:07]} 7. O-O {[%emt 0:01:14]} Bd3 {[%emt 0:00:12]} 8. Re1 {[%emt 0:00:08]} Be7 {[%emt 0:00:07]} 9. Bc2 {[%emt 0:05:33]} Bxc2 {[%emt 0:00:28]} 10. Qxc2 {[%emt 0:00:07]} Nf6 {[%emt 0:05:58]} 11. d4 {[%emt 0:02:22]} e4 {[%emt 0:14:58]} 12. d5 {[%emt 0:03:33]} exf3 {[%emt 0:01:38]} 13. dxc6 {[%emt 0:00:08]} bxc6 {[%emt 0:00:26]} 14. gxf3 {[%emt 0:06:47]} O-O {[%emt 0:01:32]} 15. Bg5 {[%emt 0:07:39]} Qd7 {[%emt 0:12:15]} 16. Nd2 {[%emt 0:04:22]} Rae8 {[%emt 0:03:34]} 17. Nf1 {[%emt 0:12:16]} Qh3 {[%emt 0:16:07]} 18. Bxf6 {[%emt 0:13:20]} Rxf6 {[%emt 0:03:20]} 19. Ng3 {[%emt 0:02:17]} Rh6 {[%emt 0:00:54]} 20. Qf5 {[%emt 0:07:44]} Qxh2+ {[%emt 0:02:42]} 21. Kf1 {[%emt 0:00:08]} Rf8 {[%emt 0:08:23]} 22. Qg4 {[%emt 0:04:36]} Rg6 {[%emt 0:00:55]} 23. Qh5 {[%emt 0:14:08]} Bh4 {[%emt 0:00:32]} 0-1

[Event "17th Memorial Lezcano Montalvo 2025"]
[Site "Gran Canaria"]
[Date "2025.04.18"]
[Round "7.31"]
[White "Basualdo De Ornelas, Jorge"]
[Black "Rodriguez Melian, Jose Luis"]
[Result "1/2-1/2"]
[Annotator "RC"]
[ECO "C42"]
[WhiteElo "1794"]
[BlackElo "2029"]
[PlyCount "137"]
[EventDate "2025.04.13"]
[EventType "swiss"]
[EventCountry "ESP"]
[SourceTitle "playchess.com"]
[Source "ChessBase"]
[SourceQuality "1"]
[TimeControl "5400+30"]

1. e4 {[%emt 0:00:01]} e5 {[%emt 0:01:56]} 2. Nf3 {[%emt 0:00:05]} Nf6 {[%emt 0:00:04]} 3. Nxe5 {[%emt 0:00:19]} d6 {[%emt 0:00:04]} 4. Nd3 {[%emt 0:00:22]} Nxe4 {[%emt 0:00:09]} 5. Qe2 {[%emt 0:00:09]} Qe7 {[%emt 0:00:06]} 6. Nf4 {[%emt 0:00:17]} c6 {[%emt 0:00:31]} 7. f3 {[%emt 0:00:13]} Nf6 {[%emt 0:00:47]} 8. d4 {[%emt 0:00:14]} Bf5 {[%emt 0:07:54]} 9. c3 {[%emt 0:01:48]} d5 {[%emt 0:10:11]} 10. g4 {[%emt 0:02:53]} Bc8 {[%emt 0:09:39]} 11. h4 {[%emt 0:01:46]} Qxe2+ {[%emt 0:01:04]} 12. Bxe2 {[%emt 0:00:04]} Bd6 {[%emt 0:00:06]} 13. h5 {[%emt 0:04:49]} Nbd7 {[%emt 0:02:48]} 14. Kf2 {[%emt 0:01:09]} Nf8 {[%emt 0:00:29]} 15. g5 {[%emt 0:16:54]} Ng8 {[%emt 0:00:22]} 16. Bd3 {[%emt 0:01:30]} Ne7 {[%emt 0:00:12]} 17. Re1 {[%emt 0:02:22]} Ne6 {[%emt 0:01:53]} 18. Ng2 {[%emt 0:05:10]} O-O {[%emt 0:04:02]} 19. Na3 {[%emt 0:01:23]} g6 {[%emt 0:03:11]} 20. Nc2 {[%emt 0:17:37]} Ng7 {[%emt 0:04:02]} 21. Bf4 {[%emt 0:03:37]} Bxf4 {[%emt 0:04:26]} 22. Nxf4 {[%emt 0:00:05]} Ne6 {[%emt 0:07:04]} 23. Nxe6 {[%emt 0:05:04]} Bxe6 {[%emt 0:00:02]} 24. Re5 {[%emt 0:10:02]} Kg7 {[%emt 0:00:55]} 25. h6+ {[%emt 0:01:04]} Kg8 {[%emt 0:00:06]} 26. Rae1 {[%emt 0:00:08]} Nc8 {[%emt 0:01:55]} 27. Ne3 {[%emt 0:03:23]} Nd6 {[%emt 0:00:35]} 28. Ng2 {[%emt 0:01:15]} Bf5 {[%emt 0:01:45]} 29. Bxf5 {[%emt 0:03:03]} Nxf5 {[%emt 0:00:02]} 30. Ne3 {[%emt 0:00:24]} f6 {[%emt 0:02:10]} 31. gxf6 {[%emt 0:01:02]} Nxe3 {[%emt 0:00:04]} 32. R1xe3 {[%emt 0:01:02]} Rxf6 {[%emt 0:00:06]} 33. Re8+ {[%emt 0:01:13]} Rxe8 {[%emt 0:05:09]} 34. Rxe8+ {[%emt 0:00:10]} Kf7 {[%emt 0:01:28]} 35. Rh8 {[%emt 0:00:37]} g5 {[%emt 0:00:06]} 36. Rxh7+ {[%emt 0:00:39]} Kg6 {[%emt 0:00:05]} 37. Rxb7 {[%emt 0:04:29]} Kxh6 {[%emt 0:00:10]} 38. Kg3 {[%emt 0:01:00]} a5 {[%emt 0:01:52]} 39. a4 {[%emt 0:03:43]} Re6 {[%emt 0:03:24]} 40. Rb6 {[%emt 0:00:39]} Kh5 {[%emt 0:00:29]} 41. b4 {[%emt 0:02:09]} Re3 {[%emt 0:00:29]} 42. Rxc6 {[%emt 0:00:39]} g4 {[%emt 0:00:07]} 43. bxa5 {[%emt 0:03:14]} Rxf3+ {[%emt 0:00:29]} 44. Kg2 {[%emt 0:00:09]} Rd3 {[%emt 0:00:26]} 45. a6 {[%emt 0:00:35]} Rd2+ {[%emt 0:00:07]} 46. Kf1 {[%emt 0:00:47]} Ra2 {[%emt 0:00:44]} 47. a7 {[%emt 0:03:27]} Rxa4 {[%emt 0:00:07]} 48. Rc7 {[%emt 0:00:42]} Kh4 {[%emt 0:00:10]} 49. Rh7+ {[%emt 0:00:35]} Kg3 {[%emt 0:00:05]} 50. Ke2 {[%emt 0:00:11]} Kg2 {[%emt 0:00:41]} 51. Ke3 {[%emt 0:00:51]} Kg3 {[%emt 0:01:44]} 52. Rg7 {[%emt 0:00:33]} Ra3 {[%emt 0:00:07]} 53. Ke2 {[%emt 0:00:49]} Ra2+ {[%emt 0:02:26]} 54. Ke3 {[%emt 0:00:07]} Ra3 {[%emt 0:00:24]} 55. Ke2 {[%emt 0:00:08]} Kh3 {[%emt 0:02:47]} 56. Rh7+ {[%emt 0:00:05]} Kg2 {[%emt 0:00:08]} 57. Rd7 {[%emt 0:01:06]} g3 {[%emt 0:00:12]} 58. Rxd5 {[%emt 0:00:21]} Rxa7 {[%emt 0:00:11]} 59. Rg5 {[%emt 0:00:55]} Rc7 {[%emt 0:05:43]} 60. Kd3 {[%emt 0:00:25]} Kf3 {[%emt 0:01:19]} 61. d5 {[%emt 0:00:32]} g2 {[%emt 0:00:18]} 62. Kd4 {[%emt 0:00:53]} Rf7 {[%emt 0:00:08]} 63. d6 {[%emt 0:00:27]} Rf4+ {[%emt 0:00:16]} 64. Ke5 {[%emt 0:00:32]} Rg4 {[%emt 0:00:06]} 65. Rxg4 {[%emt 0:00:32]} Kxg4 {[%emt 0:00:02]} 66. d7 {[%emt 0:00:05]} g1=Q {[%emt 0:00:08]} 67. d8=Q {[%emt 0:00:05]} Qe3+ {[%emt 0:00:46]} 68. Kd6 {[%emt 0:00:29]} Qxc3 {[%emt 0:00:20]} 69. Qg8+ {[%emt 0:00:15]} 1/2-1/2